[Event "28th CRO-chT 1B-Men 2019"]
[Site "Mali Losinj"]
[Date "2019.10.06"]
[Round "9.19"]
[White "Sokolov, Ivan"]
[Black "Djukic, Nikola"]
[Result "1-0"]
[ECO "E90"]
[WhiteElo "2584"]
[BlackElo "2517"]
[Annotator "ChessBase"]
[PlyCount "71"]
[EventDate "2019.09.28"]
[EventType "team-tourn"]
[EventCountry "CRO"]
[SourceTitle "playchess.com"]
[Source "ChessBase"]
[SourceQuality "1"]
[TimeControl "40/5400+30:1800+30"]

1. d4 {[%emt 0:17:30]} Nf6 {[%emt 0:00:30]} 2. c4 {[%emt 0:00:30]} g6 {[%emt 0:00:00]} 3. Nc3 {[%emt 0:00:00]} Bg7 {[%emt 0:00:00]} 4. e4 {[%emt 0:00:00]} d6 {[%emt 0:00:00]} 5. Be2 {[%emt 0:00:30]} O-O {[%emt 0:00:00]} 6. Be3 {[%emt 0:00:00]} Nbd7 {[%emt 0:06:30]} 7. Nf3 {[%emt 0:05:00]} c6 {[%emt 0:07:30]} 8. h3 {[%emt 0:05:30]} a6 {[%emt 0:13:30]} 9. O-O {[%emt 0:11:30]} b5 {[%emt 0:00:30]} 10. cxb5 {[%emt 0:00:30]} axb5 {[%emt 0:05:30]} 11. a3 {[%emt 0:06:30]} Bb7 {[%emt 0:00:30]} 12. Qc2 {[%emt 0:00:00]} Qb8 {[%emt 0:03:30]} 13. Rfd1 {[%emt 0:00:00]} Rc8 {[%emt 0:00:30]} 14. Nd2 {[%emt 0:11:30]} c5 {[%emt 0:10:30]} 15. d5 {[%emt 0:01:30]} Ba6 {[%emt 0:00:30]} 16. Qb3 {[%emt 0:05:30]} c4 {[%emt 0:14:30]} 17. Qc2 {[%emt 0:00:00]} Nc5 {[%emt 0:00:00]} 18. Nf3 {[%emt 0:00:00]} Nfd7 {[%emt 0:03:00]} 19. Na2 {[%emt 0:00:00]} Nd3 {[%emt 0:04:30]} 20. Bd4 {[%emt 0:03:00]} N7c5 {[%emt 0:01:30]} 21. Bxg7 {[%emt 0:01:30]} Kxg7 {[%emt 0:00:00]} 22. Nb4 {[%emt 0:04:30]} Nxb4 {[%emt 0:06:00]} 23. axb4 {[%emt 0:00:30]} Nb3 {[%emt 0:00:30]} 24. Qc3+ {[%emt 0:00:30]} Kg8 {[%emt 0:00:30]} 25. Rab1 {[%emt 0:00:30]} Bb7 {[%emt 0:02:51]} 26. Re1 {[%emt 0:01:30]} Qc7 {[%emt 0:04:46]} 27. Bd1 {[%emt 0:02:30]} e6 {[%emt 0:00:38]} 28. dxe6 {[%emt 0:03:30]} fxe6 {[%emt 0:00:05]} 29. Ng5 {[%emt 0:00:30]} Qe7 {[%emt 0:04:06]} 30. Bg4 {[%emt 0:00:00]} Qxg5 {[%emt 0:01:13]} 31. Bxe6+ {[%emt 0:00:00]} Kf8 {[%emt 0:00:02]} 32. Bxc8 {[%emt 0:00:30]} Bxc8 {[%emt 0:00:15]} 33. Qh8+ {[%emt 0:00:30]} Ke7 {[%emt 0:01:46]} 34. Qxh7+ {[%emt 0:00:00]} Ke6 {[%emt 0:04:04]} 35. Re3 {[%emt 0:02:00]} Nd4 {[%emt 0:00:12]} 36. Qg8+ {[%emt 0:00:30]} 1-0

[Event "28th CRO-chT 1B-Men 2019"]
[Site "Mali Losinj"]
[Date "2019.10.06"]
[Round "9.20"]
[White "Bogut, Zeljko"]
[Black "Nemeth, Miklos"]
[Result "0-1"]
[ECO "A45"]
[WhiteElo "2386"]
[BlackElo "2488"]
[Annotator "ChessBase"]
[PlyCount "115"]
[EventDate "2019.09.28"]
[EventType "team-tourn"]
[EventCountry "CRO"]
[SourceTitle "playchess.com"]
[Source "ChessBase"]
[SourceQuality "1"]
[TimeControl "40/5400+30:1800+30"]

1. d4 {[%emt 0:00:30]} Nf6 {[%emt 0:00:30]} 2. Bg5 {[%emt 0:00:30]} Ne4 {[%emt 0:00:00]} 3. Bf4 {[%emt 0:00:00]} e6 {[%emt 0:00:00]} 4. Nd2 {[%emt 0:00:00]} Nxd2 {[%emt 0:00:30]} 5. Qxd2 {[%emt 0:00:30]} d5 {[%emt 0:01:30]} 6. Nf3 {[%emt 0:00:30]} Bd6 {[%emt 0:01:30]} 7. Bxd6 {[%emt 0:01:30]} Qxd6 {[%emt 0:00:30]} 8. e3 {[%emt 0:00:30]} O-O {[%emt 0:03:30]} 9. c4 {[%emt 0:01:30]} c6 {[%emt 0:06:30]} 10. Bd3 {[%emt 0:02:30]} Nd7 {[%emt 0:01:30]} 11. O-O {[%emt 0:00:30]} b6 {[%emt 0:12:30]} 12. Rac1 {[%emt 0:03:30]} Bb7 {[%emt 0:02:30]} 13. Rfd1 {[%emt 0:19:30]} f5 {[%emt 0:04:30]} 14. b4 {[%emt 0:02:30]} a5 {[%emt 0:08:30]} 15. c5 {[%emt 0:12:30]} Qe7 {[%emt 0:02:30]} 16. Rb1 {[%emt 0:14:30]} axb4 {[%emt 0:03:30]} 17. Rxb4 {[%emt 0:01:30]} Ra3 {[%emt 0:02:30]} 18. Rb2 {[%emt 0:08:30]} b5 {[%emt 0:09:30]} 19. Qc1 {[%emt 0:14:46]} Bc8 {[%emt 0:07:30]} 20. Rc2 {[%emt 0:02:24]} Ra7 {[%emt 0:01:30]} 21. Qb2 {[%emt 0:00:10]} g5 {[%emt 0:03:30]} 22. Be2 {[%emt 0:02:57]} f4 {[%emt 0:06:30]} 23. exf4 {[%emt 0:00:18]} Rxf4 {[%emt 0:00:30]} 24. g3 {[%emt 0:00:26]} Rf8 {[%emt 0:00:45]} 25. Qc1 {[%emt 0:01:41]} h6 {[%emt 0:00:49]} 26. Qe3 {[%emt 0:00:17]} Qf6 {[%emt 0:02:48]} 27. Ne5 {[%emt 0:04:12]} Nxe5 {[%emt 0:00:34]} 28. dxe5 {[%emt 0:00:01]} Qg7 {[%emt 0:01:31]} 29. Rd4 {[%emt 0:00:48]} Rf5 {[%emt 0:01:38]} 30. Bg4 {[%emt 0:04:46]} Rxe5 {[%emt 0:00:07]} 31. Qd2 {[%emt 0:00:23]} Qg6 {[%emt 0:02:15]} 32. Rb2 {[%emt 0:00:37]} Re4 {[%emt 0:01:05]} 33. Rxe4 {[%emt 0:00:33]} Qxe4 {[%emt 0:00:06]} 34. Rb4 {[%emt 0:00:07]} Qe5 {[%emt 0:01:45]} 35. Bd1 {[%emt 0:00:50]} Kg7 {[%emt 0:03:50]} 36. h4 {[%emt 0:00:15]} Rf7 {[%emt 0:07:08]} 37. hxg5 {[%emt 0:00:18]} hxg5 {[%emt 0:00:01]} 38. Rg4 {[%emt 0:00:53]} Kf6 {[%emt 0:00:22]} 39. Kg2 {[%emt 0:00:55]} Rg7 {[%emt 0:00:51]} 40. a4 {[%emt 0:00:00]} bxa4 {[%emt 0:00:00]} 41. Bxa4 {[%emt 0:03:53]} Qf5 {[%emt 0:03:25]} 42. Rb4 {[%emt 0:01:30]} Bd7 {[%emt 0:03:30]} 43. Bc2 {[%emt 0:16:03]} Qe5 {[%emt 0:00:00]} 44. Rb1 {[%emt 0:02:46]} d4 {[%emt 0:01:00]} 45. Qa5 {[%emt 0:02:01]} Qd5+ {[%emt 0:02:30]} 46. Kg1 {[%emt 0:00:26]} Rg8 {[%emt 0:01:30]} 47. Re1 {[%emt 0:03:04]} e5 {[%emt 0:03:30]} 48. Be4 {[%emt 0:01:01]} Qe6 {[%emt 0:00:00]} 49. Rb1 {[%emt 0:01:21]} Qg4 {[%emt 0:00:00]} 50. Re1 {[%emt 0:01:13]} Rc8 {[%emt 0:01:30]} 51. Qa7 {[%emt 0:00:52]} Bf5 {[%emt 0:01:30]} 52. Bg2 {[%emt 0:01:30]} d3 {[%emt 0:00:54]} 53. Qa1 {[%emt 0:01:02]} Qd4 {[%emt 0:01:23]} 54. Qd1 {[%emt 0:01:02]} d2 {[%emt 0:01:29]} 55. Rf1 {[%emt 0:00:31]} g4 {[%emt 0:01:37]} 56. Qb3 {[%emt 0:00:28]} Ra8 {[%emt 0:01:20]} 57. Rd1 {[%emt 0:00:38]} Ra1 {[%emt 0:00:15]} 58. Bf1 {[%emt 0:01:02]} 0-1

[Event "28th CRO-chT 1B-Men 2019"]
[Site "Mali Losinj"]
[Date "2019.10.06"]
[Round "9.22"]
[White "Bender, Ivan"]
[Black "Trbojevic, Mladen"]
[Result "0-1"]
[ECO "D15"]
[WhiteElo "2234"]
[BlackElo "2338"]
[Annotator "ChessBase"]
[PlyCount "63"]
[EventDate "2019.09.28"]
[EventType "team-tourn"]
[EventCountry "CRO"]
[SourceTitle "playchess.com"]
[Source "ChessBase"]
[SourceQuality "1"]
[TimeControl "40/5400+30:1800+30"]

1. d4 {[%emt 0:01:30]} d5 {[%emt 0:00:30]} 2. c4 {[%emt 0:00:30]} c6 {[%emt 0:00:00]} 3. Nc3 {[%emt 0:00:30]} Nf6 {[%emt 0:00:00]} 4. e3 {[%emt 0:00:00]} a6 {[%emt 0:01:30]} 5. Nf3 {[%emt 0:08:00]} Bf5 {[%emt 0:00:30]} 6. Be2 {[%emt 0:03:30]} e6 {[%emt 0:01:30]} 7. Nh4 {[%emt 0:00:30]} Be4 {[%emt 0:05:30]} 8. O-O {[%emt 0:10:30]} Nbd7 {[%emt 0:02:30]} 9. g3 {[%emt 0:05:30]} Be7 {[%emt 0:04:30]} 10. f3 {[%emt 0:07:30]} Bg6 {[%emt 0:02:30]} 11. Nxg6 {[%emt 0:04:30]} hxg6 {[%emt 0:00:30]} 12. Re1 {[%emt 0:10:30]} O-O {[%emt 0:16:30]} 13. Kg2 {[%emt 0:10:30]} dxc4 {[%emt 0:04:30]} 14. Bxc4 {[%emt 0:00:00]} e5 {[%emt 0:00:30]} 15. Bb3 {[%emt 0:08:00]} Qc7 {[%emt 0:09:30]} 16. Bd2 {[%emt 0:06:30]} Rad8 {[%emt 0:04:30]} 17. Qc2 {[%emt 0:05:28]} c5 {[%emt 0:02:30]} 18. dxc5 {[%emt 0:01:44]} Nxc5 {[%emt 0:06:30]} 19. Bc4 {[%emt 0:00:10]} b5 {[%emt 0:05:30]} 20. Bf1 {[%emt 0:01:58]} b4 {[%emt 0:01:30]} 21. Nd1 {[%emt 0:01:00]} e4 {[%emt 0:04:30]} 22. f4 {[%emt 0:07:36]} Qd7 {[%emt 0:01:30]} 23. Re2 {[%emt 0:00:20]} Nd3 {[%emt 0:04:38]} 24. Nf2 {[%emt 0:03:26]} Bc5 {[%emt 0:05:48]} 25. Qb1 {[%emt 0:02:07]} Qd5 {[%emt 0:02:51]} 26. Kg1 {[%emt 0:00:27]} g5 {[%emt 0:01:15]} 27. Nxd3 {[%emt 0:00:19]} exd3 {[%emt 0:00:32]} 28. Re1 {[%emt 0:00:51]} gxf4 {[%emt 0:01:55]} 29. gxf4 {[%emt 0:00:02]} Qf3 {[%emt 0:00:01]} 30. Bg2 {[%emt 0:01:00]} Qxf4 {[%emt 0:00:28]} 31. Kh1 {[%emt 0:00:28]} Qh4 {[%emt 0:00:37]} 32. h3 {[%emt 0:01:04]} 0-1

[Event "28th CRO-chT 1B-Men 2019"]
[Site "Mali Losinj"]
[Date "2019.10.06"]
[Round "9.24"]
[White "Brnas, Augustin"]
[Black "Tomasic, Roland"]
[Result "0-1"]
[ECO "B83"]
[WhiteElo "2200"]
[BlackElo "2111"]
[Annotator "ChessBase"]
[PlyCount "88"]
[EventDate "2019.09.28"]
[EventType "team-tourn"]
[EventCountry "CRO"]
[SourceTitle "playchess.com"]
[Source "ChessBase"]
[SourceQuality "1"]
[TimeControl "40/5400+30:1800+30"]

1. e4 {[%emt 0:00:30]} c5 {[%emt 0:00:30]} 2. Nf3 {[%emt 0:00:30]} d6 {[%emt 0:00:00]} 3. d4 {[%emt 0:01:30]} cxd4 {[%emt 0:00:00]} 4. Nxd4 {[%emt 0:00:00]} Nf6 {[%emt 0:00:00]} 5. Nc3 {[%emt 0:02:00]} e6 {[%emt 0:00:00]} 6. Be2 {[%emt 0:00:30]} Nc6 {[%emt 0:00:30]} 7. Be3 {[%emt 0:01:30]} Be7 {[%emt 0:00:00]} 8. Qd2 {[%emt 0:01:30]} a6 {[%emt 0:01:00]} 9. f3 {[%emt 0:01:30]} Qc7 {[%emt 0:02:30]} 10. O-O {[%emt 0:09:30]} O-O {[%emt 0:00:30]} 11. Kh1 {[%emt 0:13:30]} b5 {[%emt 0:01:30]} 12. a3 {[%emt 0:00:30]} Ne5 {[%emt 0:03:30]} 13. b3 {[%emt 0:04:30]} Bb7 {[%emt 0:06:30]} 14. Bd1 {[%emt 0:02:30]} Rac8 {[%emt 0:00:30]} 15. Nde2 {[%emt 0:02:30]} d5 {[%emt 0:13:30]} 16. exd5 {[%emt 0:03:30]} Nxd5 {[%emt 0:00:30]} 17. Nxd5 {[%emt 0:00:30]} Bxd5 {[%emt 0:00:30]} 18. Nf4 {[%emt 0:01:30]} Bb7 {[%emt 0:00:30]} 19. Qf2 {[%emt 0:02:30]} Ng6 {[%emt 0:01:30]} 20. Nd3 {[%emt 0:04:30]} Bh4 {[%emt 0:09:30]} 21. Qg1 {[%emt 0:01:30]} Bf6 {[%emt 0:01:30]} 22. Ra2 {[%emt 0:00:30]} Be7 {[%emt 0:00:30]} 23. Be2 {[%emt 0:00:30]} e5 {[%emt 0:00:30]} 24. Nb4 {[%emt 0:09:30]} Qc3 {[%emt 0:02:30]} 25. Nd3 {[%emt 0:04:30]} Rfd8 {[%emt 0:06:30]} 26. Rd1 {[%emt 0:04:30]} e4 {[%emt 0:01:30]} 27. fxe4 {[%emt 0:00:30]} Bxe4 {[%emt 0:00:30]} 28. Bd2 {[%emt 0:05:30]} Qc6 {[%emt 0:04:30]} 29. Ne1 {[%emt 0:00:30]} Nh4 {[%emt 0:05:30]} 30. c4 {[%emt 0:01:30]} Rd6 {[%emt 0:12:30]} 31. cxb5 {[%emt 0:02:25]} Qa8 {[%emt 0:02:30]} 32. Be3 {[%emt 0:02:41]} Rxd1 {[%emt 0:09:49]} 33. Bxd1 {[%emt 0:00:09]} axb5 {[%emt 0:00:08]} 34. Qf2 {[%emt 0:01:44]} Rc6 {[%emt 0:05:57]} 35. a4 {[%emt 0:05:47]} Rf6 {[%emt 0:04:45]} 36. Qe2 {[%emt 0:00:18]} Qd5 {[%emt 0:04:06]} 37. Rd2 {[%emt 0:04:04]} Qf5 {[%emt 0:00:56]} 38. Kg1 {[%emt 0:00:30]} h6 {[%emt 0:00:42]} 39. Qxb5 {[%emt 0:02:48]} Qe6 {[%emt 0:00:01]} 40. Rd4 {[%emt 0:00:00]} Nf5 {[%emt 0:00:00]} 41. Bg4 {[%emt 0:02:04]} Bc6 {[%emt 0:05:36]} 42. Qb8+ {[%emt 0:00:00]} Kh7 {[%emt 0:00:00]} 43. Bf2 {[%emt 0:00:00]} Bc5 {[%emt 0:01:00]} 44. Nf3 {[%emt 0:00:30]} Bxf3 {[%emt 0:00:30]} 0-1

[Event "28th CRO-chT 1B-Men 2019"]
[Site "Mali Losinj"]
[Date "2019.10.06"]
[Round "9.25"]
[White "Vavulin, Maxim"]
[Black "Ivic, Velimir"]
[Result "1-0"]
[ECO "B90"]
[WhiteElo "2550"]
[BlackElo "2525"]
[Annotator "ChessBase"]
[PlyCount "83"]
[EventDate "2019.09.28"]
[EventType "team-tourn"]
[EventCountry "CRO"]
[SourceTitle "playchess.com"]
[Source "ChessBase"]
[SourceQuality "1"]
[TimeControl "40/5400+30:1800+30"]

1. e4 {[%emt 0:00:30]} c5 {[%emt 0:00:30]} 2. Nf3 {[%emt 0:00:00]} d6 {[%emt 0:00:00]} 3. d4 {[%emt 0:00:00]} cxd4 {[%emt 0:00:00]} 4. Nxd4 {[%emt 0:00:00]} Nf6 {[%emt 0:00:00]} 5. Nc3 {[%emt 0:00:00]} a6 {[%emt 0:00:00]} 6. Nb3 {[%emt 0:00:30]} g6 {[%emt 0:01:30]} 7. Be2 {[%emt 0:01:30]} Bg7 {[%emt 0:00:30]} 8. Be3 {[%emt 0:00:00]} Nc6 {[%emt 0:01:30]} 9. Nd5 {[%emt 0:00:00]} Nd7 {[%emt 0:12:30]} 10. Bg4 {[%emt 0:18:30]} O-O {[%emt 0:11:30]} 11. Bxd7 {[%emt 0:02:30]} Bxd7 {[%emt 0:00:30]} 12. Bb6 {[%emt 0:00:30]} Qc8 {[%emt 0:01:30]} 13. Bd4 {[%emt 0:09:30]} Bxd4 {[%emt 0:07:30]} 14. Nxd4 {[%emt 0:00:00]} Qd8 {[%emt 0:00:00]} 15. Qd2 {[%emt 0:01:00]} Rc8 {[%emt 0:14:00]} 16. O-O-O {[%emt 0:00:30]} Nxd4 {[%emt 0:05:30]} 17. Qxd4 {[%emt 0:00:30]} Be6 {[%emt 0:00:30]} 18. Rhe1 {[%emt 0:19:30]} b5 {[%emt 0:03:30]} 19. Kb1 {[%emt 0:02:30]} Rc4 {[%emt 0:03:30]} 20. Qa7 {[%emt 0:12:30]} Bxd5 {[%emt 0:03:30]} 21. exd5 {[%emt 0:00:30]} Qc8 {[%emt 0:00:30]} 22. Rd2 {[%emt 0:08:30]} Rc7 {[%emt 0:01:30]} 23. Qb6 {[%emt 0:02:30]} Qb7 {[%emt 0:04:30]} 24. Qe3 {[%emt 0:00:30]} Qc8 {[%emt 0:10:35]} 25. Qg5 {[%emt 0:02:12]} Re8 {[%emt 0:02:03]} 26. Re3 {[%emt 0:02:26]} e5 {[%emt 0:02:08]} 27. dxe6 {[%emt 0:00:46]} Rxe6 {[%emt 0:00:02]} 28. Rxe6 {[%emt 0:05:31]} Qxe6 {[%emt 0:00:08]} 29. Qd8+ {[%emt 0:00:15]} Kg7 {[%emt 0:00:03]} 30. Qxd6 {[%emt 0:00:13]} Qe1+ {[%emt 0:08:48]} 31. Rd1 {[%emt 0:00:01]} Qe2 {[%emt 0:00:18]} 32. Qd2 {[%emt 0:02:32]} Qe7 {[%emt 0:04:44]} 33. Qd4+ {[%emt 0:01:53]} f6 {[%emt 0:00:43]} 34. Qd6 {[%emt 0:02:00]} Qf7 {[%emt 0:01:04]} 35. b3 {[%emt 0:03:43]} Ra7 {[%emt 0:00:59]} 36. Rd3 {[%emt 0:01:47]} a5 {[%emt 0:00:47]} 37. Qd5 {[%emt 0:01:31]} Qe7 {[%emt 0:01:02]} 38. Re3 {[%emt 0:00:48]} Qb4 {[%emt 0:00:34]} 39. Re4 {[%emt 0:00:33]} Qc3 {[%emt 0:00:31]} 40. Qxb5 {[%emt 0:00:00]} Rc7 {[%emt 0:00:00]} 41. Qd3 {[%emt 0:04:19]} Qc6 {[%emt 0:02:31]} 42. Rc4 {[%emt 0:00:30]} 1-0

[Event "28th CRO-chT 1B-Men 2019"]
[Site "Mali Losinj"]
[Date "2019.10.06"]
[Round "9.26"]
[White "Doric, Darko"]
[Black "Tratar, Marko"]
[Result "1/2-1/2"]
[ECO "D35"]
[WhiteElo "2476"]
[BlackElo "2461"]
[Annotator "ChessBase"]
[PlyCount "20"]
[EventDate "2019.09.28"]
[EventType "team-tourn"]
[EventCountry "CRO"]
[SourceTitle "playchess.com"]
[Source "ChessBase"]
[SourceQuality "1"]
[TimeControl "40/5400+30:1800+30"]

1. d4 {[%emt 0:00:30]} d5 {[%emt 0:00:30]} 2. c4 {[%emt 0:00:00]} e6 {[%emt 0:00:00]} 3. cxd5 {[%emt 0:00:00]} exd5 {[%emt 0:00:00]} 4. Nc3 {[%emt 0:00:00]} Nf6 {[%emt 0:00:00]} 5. Bg5 {[%emt 0:00:00]} Be7 {[%emt 0:00:00]} 6. e3 {[%emt 0:00:30]} Nbd7 {[%emt 0:00:30]} 7. Nf3 {[%emt 0:00:00]} O-O {[%emt 0:00:00]} 8. Be2 {[%emt 0:00:00]} c6 {[%emt 0:00:00]} 9. O-O {[%emt 0:00:00]} Re8 {[%emt 0:00:30]} 10. a3 {[%emt 0:00:00]} a5 {[%emt 0:00:00]} 1/2-1/2

[Event "28th CRO-chT 1B-Men 2019"]
[Site "Mali Losinj"]
[Date "2019.10.06"]
[Round "9.27"]
[White "Fercec, Nenad"]
[Black "Plenkovic, Zdenko"]
[Result "1/2-1/2"]
[ECO "B31"]
[WhiteElo "2445"]
[BlackElo "2368"]
[Annotator "ChessBase"]
[PlyCount "88"]
[EventDate "2019.09.28"]
[EventType "team-tourn"]
[EventCountry "CRO"]
[SourceTitle "playchess.com"]
[Source "ChessBase"]
[SourceQuality "1"]
[TimeControl "40/5400+30:1800+30"]

1. e4 {[%emt 0:00:30]} c5 {[%emt 0:00:30]} 2. Nf3 {[%emt 0:00:00]} Nc6 {[%emt 0:00:30]} 3. Bb5 {[%emt 0:00:00]} g6 {[%emt 0:01:30]} 4. c3 {[%emt 0:00:30]} Bg7 {[%emt 0:02:30]} 5. d4 {[%emt 0:00:30]} cxd4 {[%emt 0:06:30]} 6. cxd4 {[%emt 0:00:30]} Nf6 {[%emt 0:12:30]} 7. Nc3 {[%emt 0:05:30]} d5 {[%emt 0:05:30]} 8. Ne5 {[%emt 0:01:30]} O-O {[%emt 0:07:30]} 9. Nxc6 {[%emt 0:03:30]} bxc6 {[%emt 0:00:00]} 10. Bxc6 {[%emt 0:00:30]} Rb8 {[%emt 0:04:00]} 11. e5 {[%emt 0:03:30]} Ne4 {[%emt 0:13:30]} 12. O-O {[%emt 0:04:30]} Nxc3 {[%emt 0:03:30]} 13. bxc3 {[%emt 0:00:00]} Qc7 {[%emt 0:06:30]} 14. Bxd5 {[%emt 0:18:00]} Qxc3 {[%emt 0:02:30]} 15. Be3 {[%emt 0:08:30]} Rd8 {[%emt 0:08:30]} 16. Qf3 {[%emt 0:08:30]} e6 {[%emt 0:00:30]} 17. Rac1 {[%emt 0:00:30]} Qa3 {[%emt 0:02:31]} 18. Rc7 {[%emt 0:02:30]} Rd7 {[%emt 0:01:39]} 19. Rxd7 {[%emt 0:01:30]} Bxd7 {[%emt 0:00:03]} 20. Bc4 {[%emt 0:08:30]} a5 {[%emt 0:04:13]} 21. h4 {[%emt 0:01:30]} Qb4 {[%emt 0:03:39]} 22. Rc1 {[%emt 0:02:30]} Rc8 {[%emt 0:04:05]} 23. Bf1 {[%emt 0:02:30]} Rxc1 {[%emt 0:00:06]} 24. Bxc1 {[%emt 0:00:30]} Bf8 {[%emt 0:00:12]} 25. Qa8 {[%emt 0:00:30]} Kg7 {[%emt 0:00:59]} 26. a3 {[%emt 0:01:30]} Qe7 {[%emt 0:03:50]} 27. g3 {[%emt 0:08:10]} a4 {[%emt 0:00:07]} 28. Bg2 {[%emt 0:00:33]} Bb5 {[%emt 0:03:18]} 29. Bc6 {[%emt 0:01:27]} Bxc6 {[%emt 0:01:41]} 30. Qxc6 {[%emt 0:00:08]} Qa7 {[%emt 0:00:26]} 31. Be3 {[%emt 0:06:21]} Qb8 {[%emt 0:00:47]} 32. Qxa4 {[%emt 0:00:56]} Qb2 {[%emt 0:01:21]} 33. Qd1 {[%emt 0:01:41]} Qxa3 {[%emt 0:00:44]} 34. d5 {[%emt 0:00:12]} exd5 {[%emt 0:00:04]} 35. Qxd5 {[%emt 0:00:09]} Qe7 {[%emt 0:00:19]} 36. Bg5 {[%emt 0:01:52]} Qe8 {[%emt 0:00:06]} 37. h5 {[%emt 0:00:34]} Kg8 {[%emt 0:00:19]} 38. Bf6 {[%emt 0:02:13]} Qc8 {[%emt 0:00:26]} 39. Qf3 {[%emt 0:00:48]} Qe8 {[%emt 0:00:46]} 40. Qf4 {[%emt 0:00:00]} Qc8 {[%emt 0:00:00]} 41. Kh2 {[%emt 0:04:26]} Qc5 {[%emt 0:05:49]} 42. Qf3 {[%emt 0:01:30]} Qc8 {[%emt 0:03:30]} 43. Kg2 {[%emt 0:01:30]} Qe8 {[%emt 0:00:00]} 44. Qe4 {[%emt 0:01:30]} Qc8 {[%emt 0:01:00]} 1/2-1/2

[Event "28th CRO-chT 1B-Men 2019"]
[Site "Mali Losinj"]
[Date "2019.10.06"]
[Round "9.28"]
[White "Muha, Miljenko"]
[Black "Zufic, Miroslav"]
[Result "1/2-1/2"]
[ECO "E92"]
[WhiteElo "2322"]
[BlackElo "2367"]
[Annotator "ChessBase"]
[PlyCount "80"]
[EventDate "2019.09.28"]
[EventType "team-tourn"]
[EventCountry "CRO"]
[SourceTitle "playchess.com"]
[Source "ChessBase"]
[SourceQuality "1"]
[TimeControl "40/5400+30:1800+30"]

1. d4 {[%emt 0:00:30]} Nf6 {[%emt 0:00:30]} 2. c4 {[%emt 0:00:00]} g6 {[%emt 0:00:00]} 3. Nc3 {[%emt 0:01:00]} Bg7 {[%emt 0:00:00]} 4. e4 {[%emt 0:01:30]} d6 {[%emt 0:00:30]} 5. Be2 {[%emt 0:01:30]} O-O {[%emt 0:00:00]} 6. Nf3 {[%emt 0:01:30]} e5 {[%emt 0:01:00]} 7. d5 {[%emt 0:04:30]} a5 {[%emt 0:00:30]} 8. Bg5 {[%emt 0:05:30]} h6 {[%emt 0:01:30]} 9. Bh4 {[%emt 0:00:30]} Na6 {[%emt 0:01:30]} 10. Nd2 {[%emt 0:00:30]} Qe8 {[%emt 0:03:30]} 11. O-O {[%emt 0:02:30]} h5 {[%emt 0:04:30]} 12. f3 {[%emt 0:03:30]} Bd7 {[%emt 0:01:30]} 13. Kh1 {[%emt 0:17:30]} Nh7 {[%emt 0:00:30]} 14. Nb3 {[%emt 0:02:30]} b6 {[%emt 0:05:30]} 15. Nc1 {[%emt 0:01:30]} Bf6 {[%emt 0:03:30]} 16. Bxf6 {[%emt 0:07:30]} Nxf6 {[%emt 0:01:30]} 17. Qd2 {[%emt 0:00:30]} Kg7 {[%emt 0:02:30]} 18. b3 {[%emt 0:02:30]} Qe7 {[%emt 0:03:30]} 19. a3 {[%emt 0:00:30]} h4 {[%emt 0:17:30]} 20. Rb1 {[%emt 0:04:30]} Nh5 {[%emt 0:00:30]} 21. Kg1 {[%emt 0:01:30]} Nf4 {[%emt 0:32:28]} 22. Nd3 {[%emt 0:01:30]} Nxe2+ {[%emt 0:00:22]} 23. Nxe2 {[%emt 0:03:30]} Nc5 {[%emt 0:01:22]} 24. Nf2 {[%emt 0:04:30]} a4 {[%emt 0:01:27]} 25. b4 {[%emt 0:00:30]} Nb3 {[%emt 0:00:07]} 26. Qe3 {[%emt 0:00:30]} b5 {[%emt 0:01:43]} 27. cxb5 {[%emt 0:04:30]} Bxb5 {[%emt 0:00:12]} 28. Rfd1 {[%emt 0:00:30]} f5 {[%emt 0:05:15]} 29. exf5 {[%emt 0:02:30]} gxf5 {[%emt 0:02:20]} 30. f4 {[%emt 0:11:39]} Rae8 {[%emt 0:03:48]} 31. Nc3 {[%emt 0:00:44]} Bd7 {[%emt 0:00:14]} 32. fxe5 {[%emt 0:05:35]} dxe5 {[%emt 0:00:01]} 33. d6 {[%emt 0:06:38]} cxd6 {[%emt 0:00:02]} 34. Qb6 {[%emt 0:00:27]} Nd4 {[%emt 0:04:26]} 35. Nd5 {[%emt 0:00:02]} Qg5 {[%emt 0:01:36]} 36. Rxd4 {[%emt 0:01:43]} exd4 {[%emt 0:00:02]} 37. Qxd4+ {[%emt 0:00:01]} Kh7 {[%emt 0:02:11]} 38. Nh3 {[%emt 0:00:25]} Qh6 {[%emt 0:00:08]} 39. b5 {[%emt 0:01:12]} Re4 {[%emt 0:00:01]} 40. Qc3 {[%emt 0:00:00]} Be6 {[%emt 0:00:00]} 1/2-1/2

[Event "28th CRO-chT 1B-Men 2019"]
[Site "Mali Losinj"]
[Date "2019.10.06"]
[Round "9.29"]
[White "Franic, Milan"]
[Black "Rade, Miroslav"]
[Result "1/2-1/2"]
[ECO "D85"]
[WhiteElo "2366"]
[BlackElo "2390"]
[Annotator "ChessBase"]
[PlyCount "46"]
[EventDate "2019.09.28"]
[EventType "team-tourn"]
[EventCountry "CRO"]
[SourceTitle "playchess.com"]
[Source "ChessBase"]
[SourceQuality "1"]
[TimeControl "40/5400+30:1800+30"]

1. d4 {[%emt 0:03:30]} Nf6 {[%emt 0:00:30]} 2. c4 {[%emt 0:00:30]} g6 {[%emt 0:00:00]} 3. Nc3 {[%emt 0:00:30]} d5 {[%emt 0:00:00]} 4. Nf3 {[%emt 0:00:30]} Bg7 {[%emt 0:00:00]} 5. cxd5 {[%emt 0:00:30]} Nxd5 {[%emt 0:00:00]} 6. e4 {[%emt 0:00:30]} Nxc3 {[%emt 0:00:30]} 7. bxc3 {[%emt 0:00:00]} c5 {[%emt 0:00:00]} 8. Bb5+ {[%emt 0:00:00]} Nc6 {[%emt 0:00:00]} 9. O-O {[%emt 0:00:30]} O-O {[%emt 0:00:30]} 10. Be3 {[%emt 0:00:00]} Bg4 {[%emt 0:00:00]} 11. Bxc6 {[%emt 0:01:00]} bxc6 {[%emt 0:00:00]} 12. Rc1 {[%emt 0:00:30]} Qa5 {[%emt 0:04:30]} 13. Qe2 {[%emt 0:02:30]} Rfd8 {[%emt 0:00:30]} 14. Rfd1 {[%emt 0:00:30]} Bxf3 {[%emt 0:00:30]} 15. gxf3 {[%emt 0:00:30]} cxd4 {[%emt 0:00:30]} 16. cxd4 {[%emt 0:00:00]} Bxd4 {[%emt 0:00:30]} 17. Bxd4 {[%emt 0:05:00]} Rxd4 {[%emt 0:02:30]} 18. Rxc6 {[%emt 0:04:30]} Rxd1+ {[%emt 0:07:30]} 19. Qxd1 {[%emt 0:00:30]} Rd8 {[%emt 0:00:30]} 20. Qa1 {[%emt 0:07:30]} Qg5+ {[%emt 0:08:30]} 21. Kh1 {[%emt 0:00:00]} Qb5 {[%emt 0:00:30]} 22. Rc2 {[%emt 0:08:00]} f6 {[%emt 0:07:30]} 23. Qc1 {[%emt 0:01:30]} Kf7 {[%emt 0:20:30]} 1/2-1/2